bitfinex-derivatives/quotes_BTCF0:USTF0_20241023
["timestamp","ask_amount","ask_price","bid_price","bid_amount"]
[1729675015183,0.62002,66360.0,66358.0,0.075389]
[1729675015488,0.6181,66360.0,66358.0,0.075389]
[1729675015684,0.075392,66357.0,66354.0,0.075394]
[1729675015887,0.075393,66356.0,66354.0,0.075394]
[1729675016388,0.17,66359.0,66354.0,0.075394]
[1729675016682,0.075393,66355.0,66354.0,0.075394]
[1729675016881,0.17,66359.0,66351.0,0.17]
[1729675017087,0.075393,66356.0,66354.0,0.075393]
[1729675017283,0.075393,66356.0,66351.0,0.17]
[1729675017483,0.075393,66356.0,66355.0,0.075393]
[1729675018484,0.075394,66354.0,66353.0,0.04511827]
[1729675018983,0.075394,66354.0,66351.0,0.17]
[1729675018984,0.075394,66354.0,66352.0,0.04511827]
[1729675019188,0.075392,66356.0,66355.0,0.075393]
[1729675019893,0.075392,66356.0,66355.0,0.12044935]
[1729675020089,0.075392,66356.0,66355.0,0.075393]
[1729675020487,0.62006,66360.0,66357.0,0.075391]
[1729675020685,0.62006,66360.0,66355.0,0.04506312]
[1729675020686,0.075392,66356.0,66355.0,0.04506312]
[1729675021007,0.075392,66356.0,66352.0,0.06015537]
[1729675021193,0.695408,66360.0,66357.0,0.07539]
[1729675021395,0.693488,66360.0,66358.0,0.075389]
[1729675021583,0.6181,66360.0,66359.0,0.075389]
[1729675021982,0.6181,66360.0,66359.0,0.12045903]
[1729675022299,0.693488,66360.0,66359.0,0.12045903]
[1729675022486,0.693488,66360.0,66359.0,0.075389]
[1729675022787,0.693488,66360.0,66359.0,0.12045903]
[1729675023312,0.693488,66360.0,66359.0,0.04507003]
[1729675023594,0.693488,66360.0,66355.0,0.23015537]
[1729675023595,0.693488,66360.0,66355.0,0.06015537]
[1729675023784,0.6181,66360.0,66356.0,0.04508787]
[1729675023980,0.17,66357.0,66355.0,0.04508787]
[1729675024184,0.075394,66354.0,66353.0,0.04508787]
[1729675024382,0.075394,66354.0,66353.0,0.0450996]
[1729675024383,0.436194,66354.0,66353.0,0.0450996]
[1729675024585,0.075396,66353.0,66351.0,0.075397]
[1729675024789,0.10452929,66352.0,66351.0,0.075397]
[1729675025598,0.075397,66352.0,66351.0,0.075397]
[1729675025801,0.10452868,66352.0,66351.0,0.075397]
[1729675026592,0.02913168,66352.0,66351.0,0.075397]
[1729675026791,0.3608,66354.0,66350.0,0.17226036]
[1729675027096,0.02913282,66353.0,66352.0,0.075397]
[1729675028096,0.10452782,66353.0,66352.0,0.075397]
[1729675028404,0.10452782,66353.0,66350.0,0.17226036]
[1729675028405,0.075398,66351.0,66350.0,0.00226036]
[1729675030198,0.10453151,66351.0,66342.0,0.075408]
[1729675030400,0.3608,66346.0,66334.0,0.17]
[1729675030591,0.07541,66341.0,66334.0,0.17]
[1729675030791,0.07541,66341.0,66340.0,0.07541]
[1729675031095,0.10454623,66341.0,66340.0,0.07541]
[1729675031403,0.07541,66341.0,66340.0,0.07541]
[1729675031596,0.2624,66345.0,66338.0,0.17]
[1729675031796,0.10454223,66344.0,66342.0,0.075407]
[1729675031993,0.02913623,66343.0,66342.0,0.075407]
[1729675032688,0.075407,66343.0,66342.0,0.075407]
[1729675034303,0.075407,66343.0,66342.0,0.13555534]
[1729675035205,0.2624,66345.0,66344.0,0.075406]
[1729675036028,0.3608,66346.0,66345.0,0.075405]
[1729675036201,0.436203,66346.0,66345.0,0.075405]
[1729675036406,0.3608,66346.0,66345.0,0.075405]
[1729675036799,0.436203,66346.0,66345.0,0.075405]
[1729675038419,0.436203,66346.0,66345.0,0.12052065]
[1729675039006,0.436203,66346.0,66345.0,0.12052057]
[1729675039215,0.436203,66346.0,66345.0,0.075405]
[1729675040214,0.3608,66346.0,66345.0,0.075405]
[1729675040601,0.436203,66346.0,66345.0,0.075405]
[1729675041397,0.3608,66346.0,66345.0,0.075405]
[1729675041607,0.075385,66363.0,66353.0,0.075395]
[1729675041914,0.3608,66364.0,66345.0,1.206205]
[1729675041915,0.02913131,66362.0,66361.0,0.075386]
[1729675042108,0.3608,66364.0,66363.0,0.075384]
[1729675042318,0.3608,66364.0,66363.0,0.245384]
[1729675042501,0.38992783,66364.0,66363.0,0.245384]
[1729675042704,0.3608,66368.0,66367.0,0.07538]
[1729675042915,0.3608,66368.0,66367.0,0.24538]
[1729675045813,0.07537,66376.0,66375.0,0.075369]
[1729675046019,0.07537,66376.0,66375.0,0.245369]
[1729675046219,0.38014542,66378.0,66377.0,0.075368]
[1729675046530,0.45551242,66378.0,66377.0,0.075368]
[1729675046706,0.436167,66378.0,66377.0,0.075368]
[1729675047419,0.436161,66384.0,66376.0,0.17]
[1729675047720,0.436161,66384.0,66383.0,0.245361]
[1729675048021,0.3608,66384.0,66383.0,0.245361]
[1729675048714,0.075368,66378.0,66374.0,0.17]
[1729675049302,0.075368,66378.0,66377.0,0.17]
[1729675049525,0.075362,66383.0,66379.0,0.075366]
[1729675049813,0.075363,66382.0,66381.0,0.17]
[1729675050114,0.3608,66384.0,66383.0,0.075361]
[1729675051625,0.3608,66384.0,66378.0,0.075366]
[1729675051820,0.075366,66379.0,66378.0,0.075366]
[1729675052223,0.436161,66384.0,66381.0,0.075364]
[1729675052519,0.075361,66383.0,66381.0,0.245364]
[1729675053104,0.3608,66384.0,66383.0,0.075361]
[1729675053518,0.2608,66397.0,66381.0,0.17]
[1729675053819,0.2608,66397.0,66390.0,0.17]
[1729675053820,0.075352,66391.0,66390.0,0.17]
[1729675054409,0.075352,66391.0,66390.0,0.245353]
[1729675054818,0.11313401,66391.0,66390.0,0.245353]
[1729675055123,0.25867598,66391.0,66390.0,0.245353]
[1729675055310,0.11313401,66391.0,66388.0,0.5089]
[1729675055508,0.19180461,66398.0,66392.0,0.075351]
[1729675055509,0.23755837,66394.0,66392.0,0.075351]
[1729675055713,0.16633185,66393.0,66392.0,0.075351]
[1729675055917,0.11227488,66393.0,66392.0,0.075351]
[1729675056311,0.18762488,66393.0,66392.0,0.075351]
[1729675056517,0.18762488,66393.0,66392.0,0.04838749]
[1729675056713,0.18762488,66393.0,66392.0,0.15838749]
[1729675056714,0.11227488,66393.0,66392.0,0.15838749]
[1729675057223,0.11227488,66393.0,66392.0,0.04838749]
[1729675059815,0.1473096,66394.0,66390.0,0.17]
[1729675060010,0.1473096,66394.0,66393.0,0.24535]
[1729675061511,0.2226586,66394.0,66393.0,0.07535]
[1729675061717,0.6781096,66394.0,66390.0,0.075353]
[1729675061913,0.075361,66384.0,66375.0,0.5308]
[1729675062114,0.81123935,66383.0,66379.0,0.17]
[1729675062317,0.16633124,66382.0,66379.0,0.17]
[1729675062517,0.075365,66380.0,66379.0,0.17]
[1729675062717,0.11227735,66380.0,66379.0,0.00405547]
[1729675062917,0.2695,66382.0,66379.0,0.00405547]
[1729675063515,0.075365,66380.0,66379.0,0.00405547]
[1729675065218,0.2695,66382.0,66379.0,0.07942047]
[1729675065418,0.2695,66382.0,66381.0,0.17]
[1729675065623,0.2695,66382.0,66379.0,0.00405547]
[1729675065824,0.075365,66380.0,66379.0,0.00405547]
[1729675070021,0.075365,66380.0,66378.0,0.00225935]
[1729675070022,0.075366,66379.0,66378.0,0.00225935]
[1729675070223,0.330166,66379.0,66378.0,0.00225935]
[1729675070721,0.500166,66379.0,66378.0,0.00225935]
[1729675070916,0.500166,66379.0,66356.0,0.3608]
[1729675070917,0.075384,66363.0,66362.0,0.17]
[1729675073833,0.075384,66363.0,66362.0,0.245385]
[1729675074730,0.3608,66370.0,66362.0,0.17]
[1729675074934,0.3608,66370.0,66368.0,0.075378]
[1729675075122,0.3608,66370.0,66369.0,0.075377]
[1729675077826,0.075378,66369.0,66364.0,0.075383]
[1729675078031,0.53272,66370.0,66368.0,0.07512229]
[1729675078234,0.5308,66370.0,66365.0,0.15050429]
[1729675078737,0.606177,66370.0,66365.0,0.15050429]
[1729675078934,0.606177,66370.0,66366.0,0.15050329]
[1729675079634,0.3608,66370.0,66368.0,0.075378]
[1729675079834,0.3608,66370.0,66369.0,0.075377]
[1729675080225,0.3608,66370.0,66367.0,0.07512229]
[1729675080537,0.3608,66370.0,66369.0,0.075377]
[1729675080843,0.3608,66370.0,66369.0,0.245377]
[1729675081342,0.2548,66379.0,66378.0,0.075367]
[1729675081531,0.2548,66379.0,66378.0,0.245367]
[1729675081731,0.330166,66379.0,66378.0,0.075367]
[1729675082633,0.075367,66378.0,66377.0,0.0600742]
[1729675082834,0.2548,66379.0,66378.0,0.075367]
[1729675083042,0.330166,66379.0,66378.0,0.075367]
[1729675083233,0.2548,66379.0,66378.0,0.075367]
[1729675083542,0.2548,66379.0,66378.0,0.245367]
[1729675083929,0.2548,66379.0,66378.0,0.075367]
[1729675084125,0.330166,66379.0,66378.0,0.075367]
[1729675084329,0.330166,66379.0,66378.0,0.1354442]
[1729675084541,0.500166,66379.0,66378.0,0.0600772]
[1729675084740,0.4248,66379.0,66376.0,0.0600772]
[1729675084931,0.075371,66375.0,66373.0,0.075372]
[1729675085130,0.4248,66379.0,66374.0,0.075371]
[1729675085733,0.075374,66372.0,66371.0,0.04506315]
[1729675085938,0.3608,66374.0,66369.0,0.0450904]
[1729675086241,0.3608,66374.0,66366.0,0.0600772]
[1729675086242,0.245375,66371.0,66370.0,0.0450904]
[1729675086436,0.245375,66371.0,66368.0,0.075378]
[1729675086437,0.17,66371.0,66369.0,0.0450904]
[1729675086842,0.075376,66370.0,66369.0,0.0450904]
[1729675087233,0.17,66371.0,66367.0,0.0600772]
[1729675087540,0.075377,66369.0,66368.0,0.04515143]
[1729675087841,0.075378,66368.0,66367.0,0.04515143]
[1729675088238,0.075378,66368.0,66367.0,0.12053143]
[1729675089034,0.075378,66368.0,66367.0,0.07538]
[1729675089341,0.075378,66368.0,66367.0,0.12052805]
[1729675090043,0.0946338,66371.0,66370.0,0.075376]
[1729675090542,0.0946338,66371.0,66370.0,0.12052381]
[1729675090728,0.075376,66371.0,66370.0,0.12052381]
[1729675090931,0.3628,66374.0,66373.0,0.075373]
[1729675091135,0.38071851,66374.0,66373.0,0.075373]
[1729675092243,0.3608,66374.0,66373.0,0.12052081]
[1729675092433,0.436172,66374.0,66373.0,0.12052081]
[1729675093037,0.436172,66374.0,66373.0,0.075373]
[1729675093038,0.50221619,66374.0,66373.0,0.075373]
[1729675093433,0.42684419,66374.0,66370.0,0.17]
[1729675093738,0.075375,66371.0,66370.0,0.075376]
[1729675094047,0.07538,66367.0,66365.0,0.075381]
[1729675094233,0.02912338,66366.0,66362.0,0.5308]
[1729675094433,0.02912338,66366.0,66365.0,0.245382]
[1729675099140,0.10450438,66366.0,66365.0,0.245382]
[1729675099336,0.02912338,66366.0,66365.0,0.245382]
[1729675099530,0.075376,66370.0,66365.0,0.245382]
[1729675099531,0.02912508,66369.0,66367.0,0.075379]
[1729675099836,0.02912508,66368.0,66365.0,0.17]
[1729675100035,0.075376,66370.0,66369.0,0.075377]
[1729675100238,0.45576268,66374.0,66373.0,0.075373]
[1729675100441,0.436172,66374.0,66373.0,0.35595925]
[1729675101137,0.436172,66374.0,66373.0,0.3560808]
[1729675102251,0.436172,66374.0,66373.0,0.35617082]
[1729675102444,0.436172,66374.0,66373.0,0.11079782]
[1729675107951,0.3608,66374.0,66373.0,0.04521257]
[1729675108142,0.3608,66374.0,66368.0,0.075377]
[1729675108143,0.3608,66374.0,66371.0,0.06028343]
[1729675109254,0.075374,66372.0,66371.0,0.06028343]
[1729675110254,0.075374,66372.0,66371.0,0.13565843]
[1729675111158,0.075374,66372.0,66371.0,0.075375]
[1729675112749,0.3608,66374.0,66367.0,0.07535429]
[1729675112950,0.3608,66374.0,66370.0,0.06028953]
[1729675113154,0.3608,66374.0,66370.0,0.06029166]
[1729675113357,0.3608,66374.0,66371.0,0.06029862]
[1729675113657,0.3608,66374.0,66371.0,0.13567362]
[1729675114452,0.075374,66372.0,66371.0,0.13567362]
[1729675114753,0.075374,66372.0,66371.0,0.06029862]
[1729675114955,0.075374,66372.0,66371.0,0.0603075]
[1729675115146,0.075377,66369.0,66368.0,0.075378]
[1729675115347,0.06604594,66369.0,66368.0,0.075378]
[1729675115553,0.26818074,66369.0,66368.0,0.075378]
[1729675115852,0.35138149,66369.0,66368.0,0.075378]
[1729675116150,0.35138149,66369.0,66368.0,0.05259008]
[1729675116859,0.1877019,66369.0,66368.0,0.05259008]
[1729675117051,0.26817856,66369.0,66368.0,0.05259008]
[1729675117259,0.07538,66367.0,66366.0,0.17]
[1729675117455,0.72359926,66367.0,66356.0,0.3608]
[1729675117660,0.075391,66357.0,66356.0,0.075392]
[1729675117855,0.10451515,66357.0,66356.0,0.075392]
[1729675118154,0.1877159,66357.0,66356.0,0.075392]
[1729675120158,0.1123249,66357.0,66356.0,0.075392]
[1729675120349,0.06604594,66357.0,66356.0,0.075392]
[1729675120748,0.1123249,66357.0,66356.0,0.075392]
[1729675120960,0.02912415,66357.0,66356.0,0.075392]
[1729675121156,0.19261842,66357.0,66356.0,0.075392]
[1729675121550,0.1123249,66357.0,66356.0,0.245392]
[1729675121750,0.27582403,66357.0,66356.0,0.245392]
[1729675122051,0.11233218,66357.0,66356.0,0.245392]
[1729675122256,0.14861901,66360.0,66359.0,0.075389]
[1729675122464,0.14861901,66360.0,66359.0,0.436189]
[1729675122761,0.14861901,66361.0,66360.0,0.075388]
[1729675122956,0.14861901,66362.0,66361.0,0.075386]
[1729675123160,0.14861901,66362.0,66361.0,0.48732632]
[1729675124158,0.14861901,66362.0,66361.0,0.59211069]
[1729675124354,0.14861901,66362.0,66361.0,0.35017037]
[1729675124549,0.14861901,66362.0,66361.0,0.59414134]
[1729675124761,0.14861901,66362.0,66361.0,0.61327221]
[1729675125363,0.14861901,66362.0,66361.0,0.86897221]
[1729675125659,0.14861901,66362.0,66361.0,0.76418784]
[1729675130058,0.14861901,66362.0,66361.0,0.52021687]
[1729675131257,0.14861901,66362.0,66361.0,0.26451687]
[1729675132564,0.17774508,66362.0,66361.0,0.26451687]
[1729675133274,0.02912607,66362.0,66361.0,0.26451687]
[1729675133766,0.436174,66373.0,66371.0,0.075374]
[1729675133970,0.06604988,66372.0,66371.0,0.075374]
[1729675134168,0.14142388,66372.0,66371.0,0.075374]
[1729675137159,0.075374,66372.0,66371.0,0.18599449]
[1729675138568,0.075374,66372.0,66371.0,0.18599764]
[1729675140268,0.075374,66372.0,66371.0,0.11062364]
[1729675140469,0.075375,66371.0,66370.0,0.07532342]
[1729675140973,0.340175,66371.0,66370.0,0.07532342]
[1729675141272,0.340175,66371.0,66370.0,0.075376]
[1729675142263,0.075376,66370.0,66369.0,0.07532342]
[1729675142458,0.075376,66370.0,66369.0,0.18593871]
[1729675144077,0.075376,66370.0,66369.0,0.07532342]
[1729675144371,0.2648,66371.0,66364.0,0.0903727]
[1729675144372,0.7956,66371.0,66364.0,0.0903727]
[1729675144586,0.3608,66365.0,66363.0,0.0903727]
[1729675144761,0.436182,66365.0,66364.0,0.11067831]
[1729675145174,0.436182,66365.0,66355.0,0.075393]
[1729675145175,0.075392,66356.0,66355.0,0.075393]
[1729675145360,0.075392,66356.0,66346.0,0.00226046]
[1729675145361,0.075399,66350.0,66349.0,0.0754]
[1729675145568,0.10452617,66350.0,66349.0,0.0754]
[1729675146473,0.02912863,66350.0,66348.0,0.17]
[1729675146672,0.3608,66351.0,66348.0,0.245401]
[1729675146673,0.02912863,66349.0,66348.0,0.245401]
[1729675148282,0.3608,66359.0,66348.0,0.245401]
[1729675148465,0.3608,66359.0,66358.0,0.07539]
[1729675148775,0.38992794,66359.0,66358.0,0.07539]
[1729675151265,0.4653166,66359.0,66358.0,0.07539]
[1729675151678,0.42685388,66359.0,66346.0,0.00226046]
[1729675151873,0.075396,66353.0,66352.0,0.075396]
[1729675152072,0.14144988,66353.0,66352.0,0.075396]
[1729675152382,0.075396,66353.0,66352.0,0.31547418]
[1729675152976,0.436183,66365.0,66361.0,0.075386]
[1729675153174,0.3608,66365.0,66361.0,0.18491263]
[1729675153368,0.3608,66365.0,66364.0,0.075383]
[1729675153681,0.3608,66365.0,66364.0,0.44528842]
[1729675154084,0.3608,66365.0,66364.0,0.35490963]
[1729675155084,0.3608,66365.0,66364.0,0.44528911]
[1729675155275,0.3608,66365.0,66364.0,0.35490963]
[1729675155666,0.3608,66365.0,66364.0,0.35468991]
[1729675156068,0.3608,66365.0,66364.0,0.48497765]
[1729675156268,0.3608,66365.0,66364.0,0.35468991]
[1729675156476,0.3608,66365.0,66364.0,0.44507076]
[1729675156872,0.3608,66365.0,66364.0,0.46431684]
[1729675157479,0.3608,66365.0,66364.0,0.37393599]
[1729675158081,0.3608,66365.0,66364.0,0.35468991]
[1729675158675,0.3608,66365.0,66364.0,0.44507076]
[1729675159178,0.3608,66365.0,66364.0,0.27507076]
[1729675159376,0.3608,66365.0,66364.0,0.18468991]
[1729675160181,0.3608,66365.0,66364.0,0.075383]
[1729675160776,0.3608,66365.0,66364.0,0.245383]
[1729675161279,0.3608,66392.0,66391.0,0.075352]
[1729675161482,0.07535,66393.0,66391.0,0.5308]
[1729675161676,0.07535,66393.0,66392.0,0.075351]
[1729675161984,0.2644,66396.0,66395.0,0.075348]
[1729675162172,0.339747,66396.0,66395.0,0.075348]
[1729675162368,0.2644,66396.0,66391.0,0.3608]
[1729675162588,0.07535,66394.0,66392.0,0.075351]
[1729675162776,0.07535,66394.0,66393.0,0.07535]
[1729675163679,0.2644,66396.0,66393.0,0.07535]
[1729675163885,0.2644,66396.0,66395.0,0.075348]
[1729675164275,0.2487,66398.0,66395.0,0.17]
[1729675164488,0.2487,66398.0,66397.0,0.075346]
[1729675165083,0.2487,66398.0,66395.0,0.17]
[1729675165084,0.00041567,66400.0,66395.0,0.17]
[1729675165281,0.00041567,66400.0,66399.0,0.245343]
[1729675165884,0.00041567,66400.0,66399.0,0.606143]
[1729675167086,0.00041567,66400.0,66399.0,0.436143]
[1729675167286,0.11272943,66400.0,66399.0,0.14949179]
[1729675168272,0.30573192,66400.0,66399.0,0.00241505]
[1729675168476,0.30573192,66400.0,66399.0,0.07775805]
[1729675168677,0.11272943,66400.0,66399.0,0.07775805]
[1729675169186,0.11272943,66400.0,66399.0,0.36491805]
[1729675169488,0.11272943,66400.0,66399.0,0.81671805]
[1729675169689,0.00137286,66403.0,66400.0,0.075342]
[1729675169881,0.00137286,66403.0,66400.0,0.527142]
[1729675171384,0.00137286,66403.0,66400.0,0.075342]
[1729675171982,0.00137286,66403.0,66400.0,0.192302]
[1729675172199,0.00137286,66403.0,66400.0,0.075342]
[1729675172684,0.00137286,66403.0,66400.0,0.527142]
[1729675173983,0.14908686,66401.0,66400.0,0.527142]
[1729675174183,0.00088828,66401.0,66400.0,0.527142]
[1729675174488,0.00088828,66401.0,66400.0,0.245342]
[1729675174879,0.14908686,66401.0,66400.0,0.245342]
[1729675175080,0.19535932,66401.0,66400.0,0.245342]
[1729675175391,0.00088828,66401.0,66400.0,0.362262]
[1729675176494,0.00088828,66401.0,66400.0,0.075342]
[1729675176700,0.00088828,66401.0,66400.0,0.245342]
[1729675182793,0.00088828,66401.0,66400.0,1.057942]
[1729675183800,0.00088828,66401.0,66400.0,0.606142]
[1729675184801,0.00088828,66401.0,66400.0,0.723062]
[1729675185502,0.00088828,66401.0,66400.0,1.174862]
[1729675188303,0.00088828,66401.0,66400.0,0.723062]
[1729675188501,0.00088828,66401.0,66400.0,0.606142]
[1729675188904,0.00088828,66401.0,66396.0,0.245347]
[1729675188905,0.36168828,66401.0,66396.0,0.245347]
[1729675189105,0.28951057,66400.0,66396.0,0.17]
[1729675189308,0.075348,66395.0,66391.0,0.17]
[1729675189501,0.075348,66395.0,66392.0,0.07535]
[1729675189699,0.075348,66395.0,66394.0,0.6164]
[1729675190007,0.46526007,66395.0,66394.0,0.4464]
[1729675190210,0.46526007,66395.0,66391.0,0.17]
[1729675190514,0.3608,66395.0,66391.0,0.245352]
[1729675190700,0.075349,66394.0,66391.0,0.245352]
[1729675191208,0.075349,66394.0,66393.0,0.07535]
[1729675192204,0.3608,66395.0,66394.0,0.075349]
[1729675193208,0.3608,66395.0,66394.0,0.12036496]
[1729675194205,0.3608,66395.0,66394.0,0.075349]
[1729675194511,0.436148,66395.0,66394.0,0.17]
[1729675194810,0.436148,66395.0,66388.0,0.01912891]
[1729675194811,0.075351,66392.0,66390.0,0.30537429]
[1729675195015,0.075351,66392.0,66390.0,0.245353]
[1729675195203,0.3608,66395.0,66392.0,0.075351]
[1729675195510,0.3608,66395.0,66394.0,0.04507618]
[1729675196312,0.436148,66395.0,66394.0,0.04507618]
[1729675197206,0.436148,66395.0,66394.0,0.04508442]
[1729675197406,0.39844047,66395.0,66394.0,0.18597433]
[1729675198314,0.075348,66395.0,66394.0,0.18597433]
[1729675198611,0.075348,66395.0,66394.0,0.18600258]
[1729675198805,0.075348,66395.0,66394.0,0.26114903]
[1729675199206,0.2586,66399.0,66394.0,0.18600258]
[1729675199404,0.075347,66396.0,66395.0,0.07514542]
[1729675199609,0.075347,66396.0,66394.0,0.15049442]
[1729675199805,0.075347,66396.0,66395.0,0.1853683]
[1729675200813,0.27808378,66399.0,66394.0,0.07514542]
[1729675200814,0.075348,66395.0,66394.0,0.07514542]
[1729675201014,0.075356,66388.0,66387.0,0.4509739]
[1729675201317,0.5308,66388.0,66379.0,0.075365]
[1729675201615,0.5308,66388.0,66374.0,0.436171]
[1729675201616,0.075369,66376.0,66374.0,0.436171]
[1729675201812,0.23014791,66375.0,66374.0,0.075371]
[1729675202016,0.23014791,66375.0,66374.0,0.245371]
[1729675202201,0.23014791,66375.0,66374.0,0.26505564]
[1729675211326,0.345258,66386.0,66385.0,0.075359]
[1729675211327,0.2699,66386.0,66385.0,0.075359]
[1729675211526,0.25462,66387.0,66382.0,0.17]
[1729675211728,0.2527,66387.0,66386.0,0.245358]
[1729675213528,0.2527,66387.0,66386.0,0.30543781]
[1729675213730,0.2527,66387.0,66386.0,0.245358]
[1729675214516,0.2527,66387.0,66386.0,0.30543781]
[1729675215230,0.2527,66387.0,66386.0,0.245358]
[1729675218324,0.09432664,66389.0,66388.0,0.075356]
[1729675218821,0.3608,66394.0,66393.0,0.07535]
[1729675219027,0.075349,66394.0,66393.0,0.17]
[1729675219730,0.075349,66394.0,66393.0,0.24535]
[1729675220033,0.01949426,66395.0,66393.0,0.17]
[1729675220232,0.075346,66397.0,66395.0,0.075347]
[1729675220527,0.87132,66399.0,66396.0,0.17]
[1729675220528,0.0540582,66398.0,66396.0,0.17]
[1729675220735,0.18763253,66397.0,66396.0,0.17]
[1729675221422,0.18763253,66397.0,66396.0,0.245347]
[1729675221925,0.18763253,66397.0,66396.0,0.17]
[1729675223032,0.56412653,66397.0,66392.0,0.17]
[1729675223243,0.075353,66390.0,66389.0,0.17]
[1729675223434,0.075359,66385.0,66384.0,0.17]
[1729675223619,0.18764553,66385.0,66384.0,0.17]
[1729675224128,0.18764553,66385.0,66379.0,0.075365]
[1729675224129,0.075365,66381.0,66379.0,0.075365]
[1729675224430,0.1044792,66380.0,66379.0,0.075365]
[1729675224632,0.24171561,66380.0,66379.0,0.075365]
[1729675225531,0.40524329,66380.0,66379.0,0.075365]
[1729675226034,0.24171561,66380.0,66379.0,0.245365]
[1729675226825,0.16635061,66380.0,66379.0,0.245365]
[1729675227627,0.3608,66381.0,66380.0,0.075365]
[1729675227935,0.3608,66381.0,66380.0,0.44494455]
[1729675228238,0.3608,66381.0,66380.0,0.35461512]
[1729675228539,0.3608,66381.0,66380.0,0.245365]
[1729675229626,0.30799859,66381.0,66380.0,0.48511454]
[1729675230634,0.30799859,66381.0,66380.0,0.48459909]
[1729675230838,0.30799859,66381.0,66380.0,0.3547417]
[1729675234225,0.075353,66391.0,66390.0,0.075353]
[1729675235135,0.075353,66391.0,66390.0,0.18393504]
[1729675235642,0.10446786,66391.0,66390.0,0.075353]
[1729675235829,0.12351222,66391.0,66390.0,0.075353]
[1729675236523,0.075356,66388.0,66387.0,0.075357]
[1729675236725,0.10447086,66388.0,66387.0,0.075357]
[1729675239936,0.10447086,66388.0,66376.0,0.27605224]
[1729675239937,0.19911486,66388.0,66376.0,0.18925224]
[1729675240132,0.075366,66381.0,66380.0,0.075363]
[1729675240324,0.10448086,66381.0,66380.0,0.075363]
[1729675240635,0.10448086,66381.0,66380.0,0.245363]
[1729675241441,0.02911486,66381.0,66380.0,0.245363]
[1729675241639,0.02911486,66381.0,66380.0,0.17]
[1729675242140,0.02911486,66381.0,66380.0,0.245365]
[1729675242339,0.02911812,66381.0,66380.0,0.17]
[1729675242539,0.37984436,66391.0,66381.0,0.075363]
[1729675242842,0.075357,66387.0,66386.0,0.07530751]
[1729675243443,0.075357,66387.0,66386.0,0.25867866]
[1729675243633,0.075357,66387.0,66386.0,0.18337115]
[1729675244835,0.075357,66387.0,66386.0,0.18335679]
[1729675249438,0.075357,66387.0,66386.0,0.10799879]
[1729675249636,0.075353,66390.0,66386.0,0.10802375]
[1729675249834,0.075353,66390.0,66383.0,0.09034653]
[1729675249835,0.07536,66384.0,66383.0,0.09034653]
[1729675250035,0.075369,66377.0,66371.0,0.09034653]
[1729675250242,0.61317,66376.0,66375.0,0.075371]
[1729675254238,0.3608,66376.0,66375.0,0.075371]
[1729675255749,0.075366,66379.0,66377.0,0.075367]
[1729675256636,0.075366,66379.0,66378.0,0.245367]
[1729675256831,0.075362,66383.0,66382.0,0.075361]
[1729675261959,0.075369,66378.0,66377.0,0.075367]
[1729675262139,0.075372,66375.0,66374.0,0.075371]
[1729675264053,0.075372,66374.0,66373.0,0.3608]
[1729675265051,0.075372,66374.0,66373.0,0.436173]
[1729675265248,0.075372,66374.0,66373.0,0.606173]
[1729675265647,0.075372,66374.0,66373.0,0.8409415]
[1729675267754,0.3608,66384.0,66373.0,0.93560421]
[1729675267950,0.077279,66385.0,66384.0,0.075359]
[1729675268259,0.075359,66385.0,66384.0,0.18227774]
[1729675268747,0.09448246,66385.0,66384.0,0.18227774]
[1729675269451,0.5207,66396.0,66390.0,0.075353]
[1729675269652,0.00192,66396.0,66395.0,0.075348]
[1729675269952,0.3608,66399.0,66395.0,0.17]
[1729675270252,0.075352,66392.0,66390.0,0.09038223]
[1729675270461,0.075352,66392.0,66391.0,0.19689147]
[1729675270462,0.075351,66392.0,66391.0,0.19689147]
[1729675270764,0.075351,66392.0,66391.0,0.10650924]
[1729675271053,0.075351,66392.0,66391.0,0.18186124]
[1729675272546,0.075351,66392.0,66391.0,0.18149749]
[1729675272743,0.075351,66392.0,66387.0,0.3608]
[1729675272947,0.1487352,66390.0,66387.0,0.5308]
[1729675273151,0.11228661,66389.0,66388.0,0.075356]
[1729675275449,0.06602343,66389.0,66388.0,0.075356]
[1729675277052,0.14137843,66389.0,66388.0,0.075356]
[1729675277952,0.06602343,66389.0,66388.0,0.075356]
[1729675278558,0.02911422,66389.0,66388.0,0.075356]
[1729675279149,0.1487352,66395.0,66388.0,0.075356]
[1729675279452,0.00088828,66401.0,66394.0,0.776149]
[1729675279662,0.00088828,66401.0,66400.0,0.606142]
[1729675279853,0.00088828,66401.0,66400.0,1.25587536]
[1729675280051,0.00168203,66404.0,66403.0,0.075339]
[1729675280252,0.00168203,66404.0,66403.0,0.18289013]
[1729675280851,0.00168203,66404.0,66403.0,0.075339]
[1729675281048,0.00168203,66404.0,66403.0,0.25781708]
[1729675281266,0.00168203,66404.0,66403.0,0.15045134]
[1729675282055,0.00168203,66404.0,66403.0,0.075339]
[1729675285263,0.00168203,66404.0,66403.0,0.15038662]
[1729675285665,0.00168203,66404.0,66403.0,0.2575754]
[1729675285865,0.00168203,66404.0,66403.0,0.15038662]
[1729675286169,0.00168203,66404.0,66403.0,0.25749786]
[1729675286369,0.00234417,66407.0,66405.0,0.075336]
[1729675286669,0.00234417,66407.0,66406.0,0.5308]
[1729675286865,0.00234417,66407.0,66406.0,0.71318312]
[1729675287266,0.00234417,66407.0,66406.0,0.78816589]
[1729675287564,0.36473912,66413.0,66410.0,0.075331]
[1729675287565,0.33898101,66413.0,66410.0,0.075331]
[1729675287766,0.33898101,66413.0,66412.0,0.17]
[1729675288160,0.33898101,66413.0,66412.0,0.245329]
[1729675291754,0.07946266,66414.0,66412.0,0.245329]
[1729675291970,0.07946266,66414.0,66412.0,0.075329]
[1729675292570,0.00413566,66414.0,66413.0,0.075327]
[1729675293569,0.00413566,66414.0,66413.0,0.436127]
[1729675294676,0.00413566,66414.0,66413.0,0.3608]
[1729675294968,0.07946166,66414.0,66413.0,0.3608]